bitfinex-derivatives/quotes_BTCF0:USTF0_20250406
["timestamp","ask_amount","ask_price","bid_price","bid_amount"]
[1743978635348,0.0633975,78922.0,78891.0,0.27777041]
[1743978635545,0.0634007,78918.0,78909.0,0.3608]
[1743978635745,0.1925,78920.0,78910.0,0.3699]
[1743978635937,0.1901974,78919.0,78918.0,0.3608]
[1743978636344,0.00011299,78919.0,78918.0,0.3608]
[1743978636542,0.00011299,78919.0,78916.0,0.3608]
[1743978636748,0.00019008,78926.0,78918.0,0.126713]
[1743978636939,0.1268449,78890.0,78889.0,5e-08]
[1743978637143,0.1269028,78854.0,78853.0,0.409]
[1743978637339,0.1269044,78853.0,78835.0,1.82096]
[1743978637547,0.12830441,78853.0,78847.0,0.3608]
[1743978637748,0.00148,78853.0,78852.0,0.27681745]
[1743978637949,0.0634504,78856.0,78852.0,0.33035686]
[1743978638156,0.00019023,78860.0,78855.0,0.3608]
[1743978638451,0.0634362,78873.0,78855.0,0.3608]
[1743978638754,0.1268835,78866.0,78865.0,0.3608]
[1743978639056,0.3608,78888.0,78865.0,0.5108]
[1743978639246,0.126867,78877.0,78876.0,0.3608]
[1743978639552,0.126867,78877.0,78876.0,2.18216]
[1743978639752,0.126867,78877.0,78876.0,2.33216]
[1743978639953,0.126867,78877.0,78876.0,2.45894047]
[1743978640753,0.00019023,78884.0,78876.0,2.45894047]
[1743978640954,0.12704483,78884.0,78883.0,0.3608]
[1743978641468,0.12704483,78884.0,78865.0,0.005]
[1743978641469,0.3608,78866.0,78826.0,0.58667298]
[1743978641658,0.1269463,78827.0,78826.0,0.19229978]
[1743978641846,0.4877463,78827.0,78826.0,0.11911038]
[1743978642158,0.4877463,78827.0,78823.0,0.05385661]
[1743978642159,0.1269511,78824.0,78823.0,0.05385661]
[1743978642455,0.1269576,78820.0,78819.0,0.00101498]
[1743978642757,0.1269576,78820.0,78819.0,0.05483876]
[1743978643053,0.1269545,78822.0,78819.0,0.33170447]
[1743978643253,0.1269576,78820.0,78819.0,0.18170447]
[1743978643642,0.1269576,78820.0,78819.0,0.12788069]
[1743978644160,0.00144,78820.0,78819.0,0.12788069]
[1743978644455,0.00144,78820.0,78819.0,0.27788069]
[1743978644657,9.232e-05,78824.0,78819.0,0.27788069]
[1743978644854,9.232e-05,78824.0,78820.0,0.3145]
[1743978645247,0.18489232,78824.0,78820.0,0.3145]
[1743978645450,0.18489232,78824.0,78823.0,0.3608]
[1743978645745,0.00109232,78824.0,78823.0,0.4877527]
[1743978645952,0.0634478,78859.0,78830.0,0.1269415]
[1743978646253,0.3652,78849.0,78831.0,0.1269394]
[1743978646449,0.3652,78849.0,78838.0,0.3608]
[1743978646651,0.3652,78849.0,78848.0,0.3608]
[1743978646851,0.36660001,78849.0,78839.0,0.44318]
[1743978647055,0.36660001,78849.0,78808.0,0.16371873]
[1743978647260,0.7216,78809.0,78760.0,0.3608]
[1743978647556,0.1270244,78779.0,78768.0,0.3608]
[1743978647751,0.3608,78790.0,78772.0,0.43915767]
[1743978647959,0.1824,78789.0,78782.0,0.00019038]
[1743978648147,0.1824,78797.0,78785.0,0.7216]
[1743978648347,0.0635037,78789.0,78783.0,1.82212]
[1743978648559,0.19319664,78796.0,78786.0,0.12691804]
[1743978648757,0.1270027,78792.0,78791.0,0.3608]
[1743978648945,0.001,78790.0,78784.0,0.1164]
[1743978649151,0.001,78790.0,78783.0,2.18292]
[1743978649356,0.4390041,78789.0,78783.0,1.82212]
[1743978649544,0.1270108,78787.0,78785.0,0.12691804]
[1743978649859,0.1270156,78784.0,78783.0,1.82212]
[1743978650250,0.4878156,78784.0,78783.0,1.82212]
[1743978650464,0.12841561,78784.0,78783.0,1.94904529]
[1743978650754,0.1270156,78784.0,78783.0,1.82212]
[1743978651758,0.3608,78756.0,78747.0,0.00101591]
[1743978652058,0.3608,78697.0,78690.0,1.20261652]
[1743978652254,0.05594191,78709.0,78690.0,1.25718479]
[1743978652460,0.3925,78706.0,78694.0,0.06358]
[1743978652654,0.3925,78706.0,78693.0,0.3608]
[1743978652655,0.1933,78706.0,78693.0,0.3608]
[1743978652858,0.0001905,78708.0,78705.0,0.3608]
[1743978653061,0.1933,78728.0,78707.0,0.3608]
[1743978653361,0.1933,78728.0,78727.0,0.3608]
[1743978653557,1e-08,78728.0,78727.0,0.6165476]
[1743978653865,0.3608,78767.0,78727.0,0.6165476]
[1743978653866,0.3608,78774.0,78727.0,0.97824165]
[1743978654162,0.1913,78754.0,78747.0,0.3608]
[1743978654363,0.1829,78753.0,78747.0,0.3608]
[1743978654562,0.3608,78749.0,78733.0,0.3608]
[1743978654760,0.18298233,78748.0,78733.0,0.3608]
[1743978655061,0.001,78742.0,78734.0,0.12698332]
[1743978655268,0.001,78742.0,78741.0,0.3608]
[1743978655650,0.001,78742.0,78741.0,0.487885]
[1743978655958,0.001,78742.0,78741.0,0.616525]
[1743978655959,0.00240001,78742.0,78741.0,0.616525]
[1743978656159,0.002,78742.0,78741.0,0.61488847]
[1743978656355,0.002,78742.0,78741.0,0.74352847]
[1743978657263,0.001,78766.0,78741.0,0.76644347]
[1743978657455,0.1898,78765.0,78757.0,0.8486591]
[1743978657652,0.1898,78765.0,78757.0,2.54584]
[1743978657856,0.1898,78765.0,78764.0,0.3608]
[1743978658258,0.19128,78765.0,78764.0,0.3608]
[1743978658755,0.19128,78765.0,78764.0,0.48776075]
[1743978659153,0.19228,78765.0,78764.0,0.48876075]
[1743978659468,0.0001905,78772.0,78764.0,0.50606455]
[1743978659766,0.1987,78771.0,78765.0,0.1849038]
[1743978660061,0.1987,78771.0,78770.0,0.3608]
[1743978660271,0.1987,78771.0,78770.0,0.36148]
[1743978660466,0.1987,78771.0,78770.0,0.37885777]
[1743978660760,0.1987,78771.0,78770.0,0.36148]
[1743978660962,0.19966001,78771.0,78770.0,0.48843107]
[1743978661160,0.1987,78771.0,78770.0,0.48843107]
[1743978661359,0.1987,78771.0,78770.0,0.50584074]
[1743978662366,0.1987,78771.0,78770.0,0.51184074]
[1743978662666,0.00946208,78820.0,78784.0,0.3608]
[1743978662964,0.1912,78837.0,78819.0,0.3608]
[1743978663169,0.1912,78837.0,78836.0,0.3608]
[1743978663669,0.1922,78837.0,78836.0,0.36144]
[1743978663862,0.1912,78837.0,78836.0,0.3608]
[1743978664970,0.1912,78837.0,78836.0,0.48764479]
[1743978665160,0.1912,78837.0,78836.0,0.50507259]
[1743978665362,0.3412,78837.0,78836.0,0.3608]
[1743978665662,0.1912,78837.0,78836.0,0.3608]
[1743978665868,0.00019038,78844.0,78836.0,0.62057539]
[1743978666163,0.00019038,78844.0,78837.0,0.01746929]
[1743978666560,0.00019038,78844.0,78843.0,0.1269205]
[1743978666761,0.00019038,78844.0,78843.0,0.50518979]
[1743978667263,0.00019038,78844.0,78843.0,0.50530729]
[1743978667465,0.00935344,78859.0,78843.0,0.50522998]
[1743978667663,0.3608,78876.0,78858.0,0.3608]
[1743978667974,0.3608,78884.0,78859.0,0.01758679]
[1743978668157,0.0634298,78881.0,78860.0,0.01758679]
[1743978668357,0.11992676,78885.0,78874.0,0.3608]
[1743978668562,0.12088677,78885.0,78875.0,0.01758679]
[1743978668762,0.1268658,78877.0,78876.0,0.01758679]
[1743978668963,0.12782581,78877.0,78876.0,0.01822679]
[1743978669265,0.00104001,78877.0,78876.0,0.01822679]
[1743978669570,0.1268637,78879.0,78876.0,0.01822679]
[1743978669871,0.18,78878.0,78877.0,0.01758679]
[1743978670257,0.4568642,78878.0,78877.0,0.01758679]
[1743978670566,0.4568642,78878.0,78874.0,0.3608]
[1743978670567,0.18,78878.0,78874.0,0.3608]
[1743978670757,0.18096001,78878.0,78877.0,0.12677886]
[1743978670963,1e-08,78878.0,78877.0,0.25364466]
[1743978671161,0.18,78885.0,78882.0,0.1268572]
[1743978671361,0.36176,78885.0,78884.0,0.3608]
[1743978671765,0.488613,78885.0,78884.0,0.3608]
[1743978671961,0.1268691,78875.0,78870.0,0.3608]
[1743978672162,0.1268603,78881.0,78861.0,0.05471495]
[1743978672367,0.006,78879.0,78874.0,0.48756922]
[1743978672564,0.006,78879.0,78875.0,0.1676]
[1743978672761,0.001,78886.0,78879.0,0.0634306]
[1743978672973,0.001,78886.0,78885.0,0.3608]
[1743978673859,0.001,78886.0,78885.0,0.487566]
[1743978674270,0.1278514,78886.0,78885.0,0.487566]
[1743978674457,0.1268599,78881.0,78874.0,0.3668]
[1743978674773,0.1997,78886.0,78874.0,0.3668]
[1743978674774,0.1987,78880.0,78875.0,0.3608]
[1743978675069,0.1987,78880.0,78876.0,0.1989]
[1743978675271,0.1268538,78885.0,78876.0,0.19954]
[1743978675469,0.1987,78884.0,78877.0,0.1963]
[1743978675672,0.3255546,78884.0,78883.0,0.3608]
[1743978675872,0.3262346,78884.0,78883.0,0.36144]
[1743978676362,0.3262346,78884.0,78883.0,0.48821404]
[1743978676763,0.19938,78884.0,78883.0,0.48821404]
[1743978677158,0.19938,78884.0,78883.0,0.49421404]
[1743978678072,0.001,78886.0,78883.0,0.49421404]
[1743978678261,0.001,78886.0,78884.0,0.3717]
[1743978678456,0.00168,78886.0,78884.0,0.00064]
[1743978678660,0.1851,78885.0,78884.0,0.00064]
[1743978678861,0.00072,78885.0,78884.0,0.00064]
[1743978679062,0.001,78886.0,78884.0,0.37234]
[1743978679270,0.1851,78899.0,78884.0,0.37234]
[1743978679271,0.1851,78899.0,78884.0,0.49910681]
[1743978679460,0.1991,78906.0,78898.0,0.8484321]
[1743978679658,0.1991,78906.0,78905.0,0.3608]
[1743978679862,0.3259192,78906.0,78905.0,0.36156]
[1743978680167,0.8374792,78906.0,78905.0,1e-07]
[1743978680366,0.8374792,78906.0,78898.0,0.00019012]
[1743978680367,0.71066,78906.0,78898.0,0.00019012]
[1743978680573,0.126853,78885.0,78884.0,0.00668]
[1743978680768,0.12781301,78885.0,78884.0,0.00732]
[1743978680973,0.00096001,78885.0,78884.0,0.00664]
[1743978681166,0.00096001,78885.0,78884.0,0.26022847]
[1743978681468,0.7216,78885.0,78861.0,0.05471495]
[1743978681670,0.3608,78862.0,78843.0,0.00101467]
[1743978681863,0.3608,78846.0,78843.0,0.00101467]
[1743978682063,0.1876,78845.0,78843.0,0.00165467]
[1743978682262,0.3871,78845.0,78844.0,0.12676761]
[1743978682470,0.3871,78845.0,78844.0,0.14395544]
[1743978682873,0.3871,78845.0,78844.0,0.27087434]
[1743978683064,0.00019012,78860.0,78850.0,0.1269084]
[1743978683371,0.00019012,78860.0,78853.0,0.3608]
[1743978683572,0.3608,78855.0,78854.0,0.01718783]
[1743978683770,0.1269061,78852.0,78851.0,0.12681504]
[1743978683976,0.1269173,78845.0,78844.0,0.006]
[1743978684170,0.1269173,78845.0,78844.0,0.0233826]
[1743978684764,0.0634614,78842.0,78818.0,0.3608]
[1743978684975,0.3608,78839.0,78827.0,0.3608]
[1743978685175,0.3608,78839.0,78832.0,0.12683192]
[1743978685366,0.0634631,78840.0,78833.0,0.01738802]
[1743978685568,0.0634631,78840.0,78834.0,0.0174184]
[1743978685774,0.3608,78847.0,78835.0,0.0174184]
[1743978685977,0.3608,78847.0,78836.0,0.0808839]
[1743978686175,0.3949,78846.0,78838.0,0.1269273]
[1743978686370,0.3949,78846.0,78839.0,0.0174184]
[1743978686572,0.001,78842.0,78841.0,0.0634619]
[1743978686774,0.00019025,78849.0,78841.0,0.0634619]
[1743978686775,0.00019025,78849.0,78841.0,0.4416803]
[1743978686976,0.00019025,78849.0,78842.0,0.0174184]
[1743978687179,0.3608,78866.0,78848.0,0.3608]
[1743978687375,0.1268975,78858.0,78852.0,0.1269059]
[1743978687673,0.00064,78858.0,78853.0,0.0174184]
[1743978687978,0.1269012,78855.0,78854.0,0.0174184]
[1743978688184,0.1275412,78855.0,78854.0,0.0180984]
[1743978688566,0.1275412,78855.0,78854.0,0.14491022]
[1743978689680,0.1285412,78855.0,78854.0,0.14491022]
[1743978690873,0.1285412,78855.0,78854.0,0.01829975]
[1743978691176,0.1269125,78848.0,78847.0,0.00019025]
[1743978691372,0.4884325,78848.0,78847.0,0.00019025]
[1743978691672,0.1276325,78848.0,78847.0,0.00019025]
[1743978691866,0.1276325,78848.0,78847.0,0.12765735]
[1743978692069,0.00072,78848.0,78847.0,0.12765735]
[1743978692374,0.001,78848.0,78847.0,0.13165735]
[1743978692572,0.00172,78848.0,78847.0,0.13165735]
[1743978693472,0.1498487,78880.0,78861.0,0.1268916]
[1743978693670,0.1498487,78880.0,78861.0,2.5442]
[1743978693671,0.00103025,78862.0,78861.0,2.5442]
[1743978693983,0.3882,78879.0,78873.0,0.1268723]
[1743978694177,0.11105227,78874.0,78873.0,0.4876723]
[1743978694479,0.11105227,78874.0,78873.0,0.4885123]
[1743978694671,0.11105227,78874.0,78873.0,0.6153394]
[1743978695173,0.11205227,78874.0,78873.0,0.6193394]
[1743978695881,0.62095862,78912.0,78885.0,0.126853]
[1743978696174,0.1268287,78901.0,78892.0,0.1268403]
[1743978696380,0.3071263,78902.0,78895.0,0.3608]
[1743978696680,0.1268291,78900.0,78895.0,0.41655335]
[1743978697079,0.1803,78902.0,78895.0,0.54330329]
[1743978697289,0.1803,78902.0,78899.0,0.1268298]
[1743978697473,0.1803,78902.0,78899.0,0.1278698]
[1743978697670,0.1803,78902.0,78899.0,0.00104]
[1743978697978,0.1268282,78901.0,78900.0,0.1267419]
[1743978698170,0.1951,78901.0,78900.0,0.1278219]
[1743978698373,0.1951,78901.0,78900.0,0.2546508]
[1743978698577,0.1951,78901.0,78900.0,0.00108]
[1743978698778,0.1951,78901.0,78900.0,0.1279089]
[1743978698975,0.1951,78901.0,78900.0,0.2546508]
[1743978699182,0.001,78902.0,78901.0,0.1268272]
[1743978699477,0.5058144,78909.0,78902.0,0.1268249]
[1743978699683,0.5058144,78909.0,78906.0,0.3608]
[1743978699984,0.379,78909.0,78906.0,0.36184]
[1743978700183,0.001,78910.0,78909.0,0.1268144]
[1743978700389,0.001,78910.0,78909.0,0.1278544]
[1743978700678,0.001,78910.0,78909.0,0.00104]
[1743978700883,0.1278128,78910.0,78909.0,0.00104]
[1743978701085,0.1278128,78910.0,78909.0,0.12776745]
[1743978701281,0.5068128,78910.0,78909.0,0.12776745]
[1743978701788,0.126824,78903.0,78902.0,0.3608]
[1743978701981,0.4444066,78910.0,78902.0,0.3608]
[1743978702187,0.1268198,78906.0,78902.0,0.3608]
[1743978702386,0.3794,78905.0,78902.0,0.4242127]
[1743978702580,0.002,78910.0,78905.0,0.0634097]
[1743978702780,0.3794,78909.0,78906.0,0.1268179]
[1743978702985,0.3794,78909.0,78907.0,0.01781911]
[1743978703178,0.3794,78909.0,78908.0,0.01781911]
[1743978703574,0.5062144,78909.0,78908.0,0.01781911]
[1743978703782,0.3794,78909.0,78908.0,0.01781911]
[1743978703980,0.3794,78909.0,78908.0,0.14454816]
[1743978704185,0.3794,78909.0,78908.0,0.27136416]
[1743978704490,0.1267857,78927.0,78909.0,0.0634069]
[1743978704688,0.3881,78923.0,78922.0,0.1267935]
[1743978704988,0.3881,78923.0,78922.0,0.14461261]
[1743978705190,0.3889,78923.0,78922.0,0.14534816]
[1743978705489,0.5156919,78923.0,78922.0,0.14534816]
[1743978706094,0.3889,78923.0,78922.0,0.14534816]
[1743978706385,0.1973,78923.0,78922.0,0.27214166]
[1743978706584,0.1965,78923.0,78922.0,0.33644816]
[1743978706784,0.3889,78923.0,78922.0,0.14534816]
[1743978706980,0.5156119,78923.0,78922.0,0.14534816]
[1743978707181,0.5156119,78923.0,78922.0,0.15134816]
[1743978708192,0.5156119,78923.0,78922.0,0.1511827]
[1743978708391,0.38882,78923.0,78922.0,0.2779762]
[1743978708588,0.38882,78923.0,78922.0,0.1511827]
[1743978709386,0.0634041,78913.0,78909.0,0.00019012]
[1743978709590,0.3786,78912.0,78909.0,0.00083012]
[1743978709786,0.3794,78912.0,78909.0,0.00019012]
[1743978709986,0.1268128,78910.0,78909.0,0.00019012]
[1743978710190,0.1275728,78910.0,78909.0,0.00019012]
[1743978710581,0.1275728,78910.0,78909.0,0.00491012]
[1743978710780,0.1275728,78910.0,78890.0,0.35681731]
[1743978710781,0.1268514,78886.0,78885.0,0.3608]
[1743978710989,0.1268514,78886.0,78885.0,0.36148]
[1743978711291,0.00096001,78886.0,78885.0,0.36148]
[1743978711500,0.1268338,78897.0,78885.0,1.04314182]
[1743978711697,0.1268353,78896.0,78895.0,0.3608]
[1743978711892,0.1902497,78898.0,78895.0,0.36144]
[1743978712089,0.1268353,78896.0,78895.0,0.36144]
[1743978712289,0.1275553,78896.0,78895.0,0.36144]
[1743978712688,0.1275553,78896.0,78895.0,0.488206]
[1743978713289,0.1275553,78896.0,78895.0,0.36144]
[1743978713489,0.1275553,78896.0,78895.0,0.48818994]
[1743978714191,0.00072,78896.0,78895.0,0.48818994]
[1743978714401,0.00172,78896.0,78895.0,0.48818994]
[1743978714897,0.19862,78896.0,78895.0,0.48818994]
[1743978715296,0.00172,78896.0,78895.0,0.61502684]
[1743978715489,0.001,78896.0,78895.0,0.61502684]
[1743978715690,0.2630973,78922.0,78908.0,0.1268148]
[1743978715886,0.5210088,78913.0,78912.0,0.3608]
[1743978716091,0.0634096,78906.0,78905.0,0.3608]
[1743978716794,0.0634096,78906.0,78905.0,0.48754994]
[1743978717202,0.2607096,78906.0,78905.0,0.12674994]
[1743978717699,0.1268305,78899.0,78898.0,0.00019012]
[1743978718092,0.1268305,78899.0,78898.0,0.12692399]
[1743978718487,0.3179305,78899.0,78898.0,0.12692399]
[1743978720203,0.19286,78899.0,78898.0,0.25547609]
[1743978720393,0.19286,78899.0,78898.0,0.12864399]
[1743978720705,0.00176,78899.0,78898.0,0.12864399]
[1743978720899,0.5104305,78899.0,78898.0,0.12864399]
[1743978721100,0.1268353,78896.0,78895.0,0.3608]
[1743978721296,0.12779531,78896.0,78895.0,0.37955775]
[1743978723200,0.00096001,78896.0,78895.0,0.37955775]
[1743978723397,0.12779531,78896.0,78895.0,0.37955775]
[1743978724099,0.12879531,78896.0,78895.0,0.37955775]
[1743978724304,0.00196001,78896.0,78895.0,0.63314459]
[1743978724602,0.063405,78912.0,78895.0,0.50630769]
[1743978724805,0.1268181,78907.0,78903.0,0.1268231]
[1743978725099,0.3667,78906.0,78905.0,0.1268208]
[1743978725298,0.1826,78906.0,78905.0,0.14457855]
[1743978725503,0.22008343,78913.0,78912.0,0.1268096]
[1743978725703,0.23315862,78926.0,78925.0,0.1267887]
[1743978726000,0.001,78934.0,78931.0,0.126779]
[1743978726196,0.3658,78948.0,78931.0,0.14523775]
[1743978726399,0.1267614,78942.0,78938.0,0.3608]
[1743978726600,0.3714,78941.0,78939.0,0.01775775]
[1743978726800,0.3714,78941.0,78938.0,0.3608]
[1743978726801,0.3714,78941.0,78940.0,0.14452235]
[1743978727001,0.3714,78941.0,78940.0,0.01775775]
[1743978727201,0.3714,78941.0,78940.0,0.14443623]
[1743978727391,0.3714,78941.0,78940.0,0.18864561]
[1743978727597,0.3714,78941.0,78940.0,0.37254561]
[1743978728397,0.3724,78941.0,78940.0,0.37454561]
[1743978728699,0.1892,78941.0,78940.0,0.50131021]
[1743978728901,0.001,78941.0,78940.0,0.86211021]
[1743978729505,0.001,78941.0,78940.0,0.73534561]
[1743978729807,0.001,78941.0,78940.0,0.86211021]
[1743978730100,0.1267557,78946.0,78940.0,0.73513472]
[1743978730299,0.3747,78945.0,78941.0,0.14430956]
[1743978730495,0.3747,78945.0,78942.0,0.01754686]
[1743978730699,0.1267582,78944.0,78943.0,0.01754686]
[1743978730901,0.1267582,78944.0,78943.0,0.14422053]
[1743978731101,0.3747,78944.0,78943.0,0.14422053]
[1743978731301,0.3747,78944.0,78943.0,0.14430666]
[1743978731507,0.3747,78944.0,78943.0,0.27098033]
[1743978731803,0.3757,78944.0,78943.0,0.27198033]
[1743978732009,0.3757,78944.0,78943.0,0.14522053]
[1743978732198,0.5024582,78944.0,78943.0,0.14522053]
[1743978732507,0.3757,78944.0,78943.0,0.27198033]
[1743978732901,0.1848,78944.0,78943.0,0.27198033]
[1743978733105,0.3348,78944.0,78930.0,0.3608]
[1743978733401,0.1811,78943.0,78934.0,0.1267733]
[1743978733609,0.1811,78943.0,78942.0,0.12667287]
[1743978733905,0.1267656,78940.0,78936.0,0.063385]
[1743978734104,0.1811,78939.0,78934.0,0.12732]
[1743978734404,0.3638,78939.0,78938.0,0.4875678]
[1743978734600,0.0633701,78956.0,78938.0,0.3608]
[1743978734799,0.1267453,78952.0,78951.0,0.3608]
[1743978735006,0.0633716,78954.0,78946.0,0.126754]
[1743978735202,0.0633716,78954.0,78944.0,0.0633789]
[1743978735203,0.1267506,78949.0,78947.0,0.1267529]
[1743978735404,0.3674,78948.0,78947.0,0.12668089]
[1743978735611,0.4941517,78948.0,78947.0,0.12668089]
[1743978735909,0.1267566,78945.0,78944.0,0.00019]
[1743978736096,0.1275566,78945.0,78944.0,0.00091]
[1743978736903,0.126779,78931.0,78921.0,0.12728]
[1743978737206,0.00104001,78931.0,78930.0,0.17075034]
[1743978737409,0.001,78939.0,78934.0,0.0633869]
[1743978737611,0.001,78939.0,78938.0,0.1267678]
[1743978737801,0.001,78939.0,78938.0,0.1274878]
[1743978737802,0.00212001,78939.0,78938.0,0.1274878]
[1743978738002,0.1847,78941.0,78940.0,0.1267646]
[1743978738201,0.1847,78941.0,78940.0,0.1274846]
[1743978738202,0.18582001,78941.0,78940.0,0.1274846]
[1743978738404,0.37032001,78941.0,78940.0,0.1274846]
[1743978738705,0.18562001,78941.0,78940.0,0.2541687]
[1743978738911,0.18562001,78941.0,78940.0,0.1274041]
[1743978739109,0.1267583,78944.0,78943.0,0.1267593]
[1743978739308,0.00068,78944.0,78943.0,0.36144]
[1743978739505,0.00072,78944.0,78943.0,0.4881998]
[1743978739710,0.42417,78956.0,78943.0,0.4881998]
[1743978739711,0.1267402,78956.0,78943.0,0.87331768]
[1743978739906,0.1267421,78954.0,78952.0,0.3608]
[1743978740103,0.1267421,78954.0,78953.0,0.1904]
[1743978740413,0.5002437,78953.0,78952.0,0.3608]
[1743978740612,0.5010837,78953.0,78952.0,0.36156]
[1743978740906,0.5010837,78953.0,78952.0,0.12743287]
[1743978741107,0.0633806,78943.0,78936.0,0.3608]
[1743978741312,0.1267678,78938.0,78937.0,0.00076]
[1743978741514,0.1275278,78938.0,78937.0,0.00076]
[1743978741709,0.1275278,78938.0,78937.0,0.12741843]
[1743978741916,0.00076,78938.0,78937.0,0.12741843]
[1743978742111,0.0633758,78949.0,78937.0,0.49601843]
[1743978742313,0.1862,78948.0,78939.0,0.35681731]
[1743978742518,0.1862,78948.0,78947.0,0.3608]
[1743978742709,0.1862,78948.0,78937.0,0.49601843]
[1743978742710,0.1267643,78941.0,78937.0,0.3686]
[1743978742910,0.0633702,78956.0,78947.0,0.12666645]
[1743978743105,0.00076,78948.0,78947.0,0.12742645]
[1743978743311,0.1275117,78948.0,78947.0,0.36156]
[1743978743509,0.1275117,78948.0,78947.0,0.48746645]
[1743978743710,0.1267517,78948.0,78947.0,0.48746645]
[1743978744113,0.1267517,78948.0,78947.0,0.12666645]
[1743978744313,0.1267517,78948.0,78947.0,0.48746645]
[1743978744518,0.126722,78967.0,78947.0,0.3668]
[1743978744818,0.1873,78967.0,78966.0,0.3608]
[1743978745009,0.0633542,78975.0,78965.0,0.784962]
[1743978745216,0.1873,78973.0,78969.0,0.126718]
[1743978745409,0.1267072,78976.0,78969.0,0.126718]
[1743978745812,0.1267085,78975.0,78969.0,0.126718]
[1743978746014,0.1267123,78973.0,78969.0,0.12663116]
[1743978746213,0.1267089,78975.0,78969.0,0.25334916]
[1743978746415,0.1873,78972.0,78969.0,0.126718]
[1743978746812,0.1873,78972.0,78969.0,0.25334916]
[1743978747010,0.18885655,78976.0,78975.0,0.1267084]
[1743978747216,0.18885655,78976.0,78975.0,0.40378345]
[1743978747419,0.126718,78969.0,78968.0,0.00019]
[1743978748020,0.502658,78969.0,78968.0,0.00103]
[1743978748814,0.37594,78969.0,78968.0,0.00103]
[1743978749125,0.502658,78969.0,78968.0,0.04465819]
[1743978750027,0.502658,78969.0,78968.0,0.05065819]
[1743978750424,0.37594,78969.0,78968.0,0.17729096]
[1743978750724,0.502658,78969.0,78968.0,0.17729096]
[1743978750918,0.502658,78969.0,78968.0,0.05065819]
[1743978751230,0.502658,78969.0,78968.0,0.04981819]
[1743978751526,0.502658,78969.0,78968.0,0.41061819]
[1743978751527,0.37594,78969.0,78968.0,0.41061819]
[1743978751921,0.37594,78969.0,78968.0,0.04981819]
[1743978752121,0.37594,78969.0,78968.0,0.41061819]
[1743978752524,0.37594,78969.0,78968.0,0.66397056]
[1743978753014,0.502658,78969.0,78968.0,0.53725096]
[1743978753213,0.502658,78969.0,78968.0,0.13282277]
[1743978753418,0.502658,78969.0,78968.0,0.00619]
[1743978754224,0.502658,78969.0,78968.0,0.0500454]
[1743978754431,0.502658,78969.0,78968.0,0.00619]
[1743978754628,0.502658,78969.0,78968.0,0.00019]
[1743978754930,0.502658,78969.0,78968.0,0.00619]
[1743978755131,0.502658,78969.0,78968.0,0.00703]
[1743978755825,0.502658,78969.0,78968.0,0.05007707]
[1743978758327,0.37594,78969.0,78968.0,0.05007707]
[1743978758531,0.502658,78969.0,78968.0,0.05007707]
[1743978760132,0.37594,78969.0,78968.0,0.05007707]
[1743978760326,0.19034,78969.0,78968.0,0.35750984]
[1743978761119,0.51167724,78978.0,78968.0,0.35750984]
[1743978761120,0.15087724,78978.0,78968.0,0.71830984]
[1743978761324,0.15087724,78978.0,78970.0,0.0633582]
[1743978761542,0.0633537,78976.0,78972.0,0.1267126]
[1743978761733,0.0633537,78976.0,78973.0,0.5019115]
[1743978762031,0.0633537,78976.0,78975.0,0.3608]
[1743978762220,0.4482537,78976.0,78975.0,0.3608]
[1743978762425,0.15087724,78977.0,78976.0,0.1267068]
[1743978762722,0.15087724,78977.0,78976.0,0.5064068]
[1743978762936,0.27758244,78977.0,78976.0,0.3797]
[1743978763229,0.27758244,78977.0,78976.0,0.12661994]
[1743978763430,0.88817724,78977.0,78968.0,0.04323707]
[1743978763633,0.1267389,78956.0,78955.0,0.1819]
[1743978763836,0.1267437,78953.0,78952.0,0.3608]
[1743978764135,0.1267485,78950.0,78949.0,0.3608]
[1743978764334,0.1267485,78950.0,78949.0,0.39750013]
[1743978764632,0.1267485,78950.0,78949.0,0.52412648]
[1743978765435,0.1267598,78943.0,78942.0,0.00019]
[1743978766537,0.1934,78943.0,78942.0,0.12686447]
[1743978766737,0.3201598,78943.0,78942.0,0.12686447]
[1743978767633,0.3201598,78943.0,78942.0,0.00019]
[1743978767833,0.3212398,78943.0,78942.0,0.00127]
[1743978768333,0.3212398,78943.0,78942.0,0.00727]
[1743978769232,0.1267758,78933.0,78932.0,0.00016414]
[1743978769426,0.1267919,78923.0,78922.0,0.29910158]
[1743978769630,0.1274719,78923.0,78922.0,0.29978158]
[1743978770026,0.1274719,78923.0,78922.0,0.33761949]
[1743978770428,0.12759545,78923.0,78922.0,0.33761949]
[1743978770633,0.12759545,78923.0,78922.0,0.03851791]
[1743978770833,0.12759545,78923.0,78922.0,0.39931791]
[1743978771525,0.12759545,78923.0,78922.0,0.00068]
[1743978771743,0.00080355,78923.0,78922.0,0.00068]
[1743978772227,0.1268015,78917.0,78916.0,0.29910158]
[1743978772427,0.48770294,78917.0,78916.0,0.29910158]
[1743978772635,0.36094979,78917.0,78915.0,0.00120374]
[1743978772936,0.064396,78923.0,78915.0,0.00120374]
[1743978772937,0.37291938,78916.0,78915.0,0.00120374]
[1743978773243,0.49972248,78916.0,78915.0,0.00120374]
[1743978773446,0.37291938,78916.0,78915.0,0.00120374]
[1743978774036,0.00011938,78916.0,78915.0,0.25472625]
[1743978774241,0.001,78917.0,78916.0,0.1268031]
[1743978774539,0.001,78917.0,78916.0,0.5140031]
[1743978774736,0.3728,78925.0,78918.0,0.1267985]
[1743978774943,0.3728,78925.0,78924.0,0.3608]
[1743978775245,0.37360476,78925.0,78924.0,0.4882303]
[1743978775539,0.00080476,78925.0,78924.0,0.36144]
[1743978775738,4.476e-05,78925.0,78924.0,0.61494651]
[1743978776040,0.18885655,78943.0,78929.0,0.1267823]
[1743978776237,0.00095,78930.0,78929.0,0.1275423]
[1743978776633,0.00095,78930.0,78929.0,0.64044566]
[1743978776835,0.00095,78930.0,78929.0,0.51366336]
[1743978777639,0.1277306,78930.0,78929.0,0.12746336]
[1743978777835,0.00095,78930.0,78929.0,0.00076]
[1743978778033,0.1277306,78930.0,78929.0,0.00076]
[1743978778233,0.1277306,78930.0,78929.0,0.00676]
[1743978778440,0.00095,78930.0,78929.0,0.00676]
[1743978778939,0.00095,78930.0,78929.0,0.13345534]
[1743978779135,0.00095,78930.0,78929.0,0.44863764]
[1743978779340,0.00095,78930.0,78929.0,0.64433764]
[1743978779541,0.3651,78942.0,78933.0,0.0633874]